[Event "Romanian Rapid Open 2022"]
[Site "Sebes"]
[Date "2022.12.02"]
[Round "5.28"]
[White "Ambru, Dan-Calin"]
[Black "Sandru, Nicolae"]
[Result "1-0"]
[ECO "D36"]
[WhiteElo "1957"]
[BlackElo "1647"]
[Annotator "TA"]
[PlyCount "124"]
[EventDate "2022.12.02"]
[EventType "rapid"]
[EventCountry "ROU"]
[SourceTitle "playchess.com"]
[Source "ChessBase"]
[SourceQuality "1"]
[TimeControl "600+5"]

{[%evp 22,124,21,27,55,52,43,38,51,41,37,30,89,89,83,92,93,76,86,62,72,36,43,-111,0,2,10,10,10,10,10,10,10,10,10,12,15,0,7,0,6,0,0,0,0,0,0,0,0,0,0,0,0,0,0,-29,-27,-28,-29,-32,-31,-94,0,-30,-5,-6,0,-107,-93,-242,-237,-349,-336,-347,-28,-190,-141,-154,-28,-28,0,-28,-13,-13,-13,-56,0,-74,-10,-259,-255,-309,-303,-369,-362,-322,-240,-335,-315,-301,-274,-719,-543,-12849,-12849]} 1. d4 {[%emt 0:00:02]} d5 {[%emt 0:00:03]} 2. c4 {[%emt 0:00:04]} e6 {[%emt 0:00:02]} 3. Nc3 {[%emt 0:00:01]} Nf6 {[%emt 0:00:02]} 4. cxd5 {[%emt 0:00:02]} exd5 {[%emt 0:00:01]} 5. Bg5 {[%emt 0:00:02]} c6 {[%emt 0:00:03]} 6. e3 {[%emt 0:00:08]} Be7 {[%emt 0:00:01]} 7. Qc2 {[%emt 0:00:02]} Nbd7 {[%emt 0:00:15]} 8. Bd3 {[%emt 0:00:03]} O-O {[%emt 0:00:02]} 9. Nge2 {[%emt 0:00:01]} Re8 {[%emt 0:00:02]} 10. O-O {[%emt 0:00:03]} Nf8 {[%emt 0:00:03]} 11. f3 {[%emt 0:00:21][%cal Bf2f3,Bf3e4,Be4e5][%mdl 32]} h6 {[%emt 0:00:03] 11...g6 is setting a new trend.} 12. Bh4 {[%emt 0:00:01]} N6h7 {[%emt 0:00:09] D36: Queen's Gambit Declined: Exchange Variation: Main line (5 Bg5 c6 6 Qc2).} 13. Bxe7 {[%emt 0:00:04]} Qxe7 {[%emt 0:00:02]} 14. e4 {[%emt 0:00:02]} dxe4 $1 {[%emt 0:00:39] White is slightly better.} 15. fxe4 {[%emt 0:00:04]} (15. Nxe4 Bf5 $11) 15... Bg4 {[%emt 0:00:05] [#]} 16. h3 $146 {[%emt 0:00:40]} ({Predecessor:} 16. Rae1 Bxe2 17. Rxe2 Rad8 18. d5 Qe5 19. Ref2 Qd4 20. Kh1 Nf6 21. h3 Ng6 22. Ne2 {1-0 (39) Savvopulo,A (2005)-Saratovskiy,D (2035) Yalta 2022}) 16... Bh5 {[%emt 0:00:09]} (16... Bxe2 $11 17. Nxe2 (17. Qxe2 Rad8 $11) 17... Ng5) 17. Nf4 $16 {[%emt 0:01:00]} Bg6 {[%emt 0:00:11]} 18. Nxg6 {[%emt 0:01:14]} Nxg6 {[%emt 0:00:03]} 19. e5 {[%emt 0:00:04][%cal Of1f7]} Nhf8 {[%emt 0:00:12]} 20. Ne4 {[%emt 0:00:34] aiming for Nd6. White has more active pieces.} Ne6 {[%emt 0:00:27]} 21. Nd6 {[%emt 0:01:14]} Nxd4 {[%emt 0:00:35]} 22. Qc4 {[%emt 0:00:29] [#]} (22. Qf2 $14 {stays ahead.} Nxe5 23. Nxe8 (23. Qxd4 Rad8 $11) 23... Rxe8 24. Qxd4) 22... Nxe5 {[%emt 0:00:24]} (22... Nf3+ $1 $17 {[%mdl 512]} 23. Rxf3 (23. gxf3 Nxe5 $17) 23... Nxe5) 23. Qxd4 $11 {[%emt 0:00:23]} Rad8 {[%emt 0:00:02] [#]} (23... c5 {is more complex.} 24. Qd5 Rad8 25. Rfd1 Rxd6 26. Qxd6 Qxd6 27. Bh7+ Kxh7 28. Rxd6 Re7) 24. Rad1 $1 {[%emt 0:01:57] Black must now prevent Bc2.} Rxd6 {[%emt 0:01:35] [#]} (24... Qxd6 {simplifies} 25. Bh7+ Kxh7 26. Qxd6 Rxd6 27. Rxd6 Re7) 25. Qxd6 {[%emt 0:00:03][%mdl 64]} Qxd6 {[%emt 0:00:05] [#]} (25... Nf3+ $2 26. Rxf3 Qxd6 27. Bh7+ $1 {[%mdl 512]} Kxh7 28. Rxd6 $18) 26. Bh7+ {[%emt 0:00:02][%mdl 64] Discovered Attack} Kxh7 {[%emt 0:00:01]} (26... Kh8 27. Rxd6) 27. Rxd6 {[%emt 0:00:03][%mdl 4096] Endgame KRR-KRN} f6 {[%emt 0:00:02]} 28. Kf2 {[%emt 0:00:31]} Re7 {[%emt 0:00:02]} 29. Re1 {[%emt 0:00:19]} Kg6 {[%emt 0:00:04]} 30. g4 {[%emt 0:00:10]} h5 {[%emt 0:00:49]} 31. Kg3 {[%emt 0:00:13]} hxg4 {[%emt 0:00:04]} 32. hxg4 {[%emt 0:00:02]} Kg5 {[%emt 0:00:09]} 33. Rd4 {[%emt 0:00:28]} a6 {[%emt 0:00:26]} 34. b4 {[%emt 0:00:07]} Rc7 {[%emt 0:00:11]} 35. Rc1 {[%emt 0:00:27]} Re7 {[%emt 0:00:57]} 36. Re1 {[%emt 0:00:28]} Rf7 {[%emt 0:00:11]} 37. Rh1 {[%emt 0:00:21]} Re7 {[%emt 0:00:13]} 38. Re4 {[%emt 0:00:08]} Rd7 {[%emt 0:00:04]} 39. Rhe1 $1 {[%emt 0:00:30]} Rd2 {[%emt 0:00:20]} 40. R1e2 {[%emt 0:00:07]} Rd5 {[%emt 0:00:17]} 41. a4 {[%emt 0:00:15]} (41. Re1 $15) 41... Ng6 {[%emt 0:00:51]} (41... b6 $1 $17 42. Kg2 c5 43. bxc5 bxc5) 42. R2e3 {[%emt 0:00:23]} Rd1 {[%emt 0:00:11]} 43. Re8 {[%emt 0:00:01]} Ne5 {[%emt 0:00:05]} 44. Rb8 {[%emt 0:00:11]} (44. Re7 $11 {keeps the balance.}) 44... b5 $17 {[%emt 0:00:14] Threatens to win with ...Rg1+.} 45. axb5 {[%emt 0:00:09]} (45. Ra8 $17 {was necessary.}) 45... axb5 $19 {[%emt 0:00:09]} ({Stronger than} 45... cxb5 46. Ra3 $17) 46. Re4 {[%emt 0:00:01]} (46. Rg8 $142 g6 47. Re4) 46... Rg1+ {[%emt 0:00:08]} 47. Kh3 {[%emt 0:00:04]} Rf1 $2 {[%emt 0:00:18]} ({Inferior is} 47... Rxg4 48. Rxg4+ Nxg4 49. Rb7 $17) (47... Nxg4 $19 48. Rd4 f5) 48. Re8 $2 {[%emt 0:00:09]} (48. Rg8 $1 $11 {and White is okay.}) 48... Rf3+ {[%emt 0:00:30]} 49. Kg2 {[%emt 0:00:03] [#]} Rb3 {[%emt 0:00:06]} ({Better is} 49... Rc3 $1 $17 {...Rc4 is the strong threat.} 50. Rg8 g6) 50. Re7 $1 $11 {[%emt 0:00:09]} Kg6 {[%emt 0:00:09]} (50... Nxg4 $2 51. Rxg7+ Kf5 52. Rgxg4 $18) 51. Re6 {[%emt 0:00:02]} Kf7 {[%emt 0:00:12]} (51... Rb2+ {seems wilder.} 52. Kg3 Kg5 53. Re7 g6) 52. Rd6 {[%emt 0:00:07]} Rc3 {[%emt 0:00:19]} 53. Rd2 {[%emt 0:00:11][%cal Og4g5]} Rb3 {[%emt 0:00:12]} (53... Kg6 $15) 54. Rf2 {[%emt 0:00:05] [#]} (54. Rd6 $11) 54... Nd3 {[%emt 0:00:09]} (54... Kg6 $1 $17) 55. Rf3 $2 {[%emt 0:00:05]} (55. Rd2 $1 $11 {and White stays safe.}) 55... Rxb4 $19 {[%emt 0:00:15]} 56. Rxb4 {[%emt 0:00:06]} Nxb4 {[%emt 0:00:01] KR-KN} 57. Rc3 {[%emt 0:00:07]} Ke6 {[%emt 0:00:04]} 58. Kf3 {[%emt 0:00:02]} g6 {[%emt 0:00:06]} 59. Re3+ {[%emt 0:00:03]} Kd6 {[%emt 0:00:07]} 60. Re8 {[%emt 0:00:04][%cal Og4g5]} Nd5 {[%emt 0:00:06] Inhibits g5.} 61. Ke4 $2 {[%emt 0:00:09]} (61. Ke2) 61... f5+ {[%emt 0:00:06]} 62. gxf5 {[%emt 0:00:04] Strongly threatening Re6+.} Nf6+ {[%emt 0:00:04][%mdl 32768] Weighted Error Value: White=0.64/Black=0.29 (precise) . Loss on time!?} 1-0

[Event "Romanian Rapid Open 2022"]
[Site "Sebes"]
[Date "2022.12.02"]
[Round "5.30"]
[White "Kedves, Lorand"]
[Black "Coicev, Matei-Andrei"]
[Result "0-1"]
[ECO "A45"]
[WhiteElo "1641"]
[BlackElo "2009"]
[Annotator "TA"]
[PlyCount "91"]
[EventDate "2022.12.02"]
[EventType "rapid"]
[EventCountry "ROU"]
[SourceTitle "playchess.com"]
[Source "ChessBase"]
[SourceQuality "1"]
[TimeControl "600+5"]

{[%evp 9,91,25,30,0,0,0,10,0,8,-17,-16,-7,-14,-16,-4,-19,-6,-25,-15,-35,-31,-44,-43,-54,-31,-64,-64,-94,-77,-90,-95,-115,-107,-114,-117,-135,-104,-122,-127,-114,-76,-77,-75,-104,-45,-194,-189,-172,-183,-193,-187,-171,-158,-195,-185,-205,-204,-195,-195,-168,-139,-137,-135,-285,-285,-279,-280,-429,-428,-443,-436,-400,-412,-691,-684,-670,-568,-659,-637,-1076,-876,-839,-832,-792]} 1. d4 {[%emt 0:00:02]} Nf6 {[%emt 0:00:01]} 2. Bf4 {[%emt 0:00:03]} c5 {[%emt 0:00:02]} 3. e3 {[%emt 0:00:02]} Nd5 {[%emt 0:00:01]} 4. Bg3 {[%emt 0:00:02]} Qb6 {[%emt 0:00:02]} 5. b3 {[%emt 0:00:16]} cxd4 {[%emt 0:00:08]} 6. Qxd4 {[%emt 0:00:23] A45: Trompowsky Attack.} (6. exd4 $5 {[%cal Rg1f3]} e6 7. c3 $14) 6... Qxd4 {[%emt 0:01:27]} 7. exd4 {[%emt 0:00:02]} Nc6 {[%emt 0:00:02]} 8. c3 {[%emt 0:00:23] The position is equal.} (8. c4 Ndb4 9. Na3 Nxd4 $15) 8... g6 {[%emt 0:00:15]} 9. Nf3 {[%emt 0:00:15] [#]} Bg7 $146 {[%emt 0:00:04]} ({Predecessor:} 9... Bh6 10. Bc4 Nb6 11. Bd3 Bc1 12. a4 Nd5 13. Ra2 d6 14. Nfd2 Bf5 {0-1 (14) Turkmen,Y (1877)-Bazakutsa,S (1900) Tornelo INT 2020}) 10. Bc4 {[%emt 0:00:19]} Nf6 {[%emt 0:00:08]} (10... e6 11. Bxd5 exd5 12. Na3 $16) 11. Nbd2 {[%emt 0:00:13]} d5 {[%emt 0:00:11]} 12. Bb5 {[%emt 0:00:09]} Bd7 {[%emt 0:00:29][%cal Bc8d7,Bd7c6,Bc6b5,Bb5d3][%mdl 32]} 13. O-O {[%emt 0:00:21]} O-O {[%emt 0:00:37]} 14. Bxc6 {[%emt 0:00:14]} Bxc6 {[%emt 0:00:01]} 15. Ne5 {[%emt 0:00:01]} Rac8 {[%emt 0:00:15]} 16. Rfe1 {[%emt 0:00:44]} e6 {[%emt 0:00:11]} (16... Bh6 $5 {[%cal Rh6d2]} 17. Ndf3 e6 $11) 17. h3 {[%emt 0:00:23]} Bh6 {[%emt 0:01:38]} 18. Nef3 {[%emt 0:00:59]} Bb5 {[%emt 0:01:05]} 19. a4 {[%emt 0:01:03]} Bd3 {[%emt 0:00:13]} 20. Bd6 {[%emt 0:01:05]} Rfe8 {[%emt 0:00:01]} 21. Bb4 {[%emt 0:00:02]} Ne4 $1 {[%emt 0:01:16] Black is more active.} 22. Nxe4 {[%emt 0:00:58]} Bxe4 {[%emt 0:00:02] A strong pair of Bishops.} 23. Ra2 {[%emt 0:00:48]} Bxf3 {[%emt 0:00:40]} 24. gxf3 {[%emt 0:00:01]} Kg7 {[%emt 0:00:03]} 25. Kg2 {[%emt 0:00:12]} Kf6 {[%emt 0:00:03]} 26. Rae2 {[%emt 0:00:10]} Rc6 {[%emt 0:00:32]} (26... Bf8 $17 {Strongly threatening ...Bxb4.} 27. Bxf8 Rxf8) 27. a5 {[%emt 0:00:33] [#]} ({White should play} 27. c4 $1 $15) 27... Bf8 $1 $19 {[%emt 0:00:11]} 28. Bxf8 {[%emt 0:00:10]} Rxf8 {[%emt 0:00:01][%mdl 4096] Endgame KRR-KRR} 29. Rc2 {[%emt 0:00:05]} Rfc8 {[%emt 0:00:02]} 30. Rec1 {[%emt 0:00:03] [#]} Ra6 $1 {[%emt 0:00:59]} 31. b4 {[%emt 0:00:02]} Rac6 {[%emt 0:00:01] Against c4} 32. Kg3 {[%emt 0:00:19]} a6 {[%emt 0:00:06]} 33. Kf4 {[%emt 0:00:04]} Rc4 {[%emt 0:00:04] Hoping for ...e5+.} 34. Ke3 {[%emt 0:00:08]} Kg5 {[%emt 0:00:03]} 35. Kd3 {[%emt 0:00:12]} Kf4 {[%emt 0:00:02]} 36. Ke2 {[%emt 0:00:23] Now White is beyond hope.} (36. Re1 $17) 36... f6 {[%emt 0:00:19][%cal Bf7f6,Bf6e5,Be5e4,Be4e3][%mdl 32]} 37. h4 {[%emt 0:00:05]} h5 {[%emt 0:00:05]} 38. Kd3 {[%emt 0:00:17]} (38. Rg1 $142 Kf5 39. Kd2) 38... e5 {[%emt 0:00:16]} ({Not} 38... Kxf3 39. Rg1 $17) 39. dxe5 {[%emt 0:00:28]} fxe5 {[%emt 0:00:02]} ({Inferior is} 39... Kxf3 40. exf6 Rxh4 41. Re2 $15) 40. Rg1 {[%emt 0:00:16]} R8c6 {[%emt 0:00:06]} ({Weaker is} 40... Kxf3 41. Rg3+ Kf4 42. Rxg6 $17) 41. Rgc1 {[%emt 0:00:25]} (41. Kd2 $142) 41... Kxf3 {[%emt 0:00:11][%cal Od5d4] Black is clearly winning.} 42. Rg1 {[%emt 0:00:04]} e4+ {[%emt 0:00:24]} 43. Kd2 {[%emt 0:00:03]} Kxf2 {[%emt 0:00:33]} 44. Rg5 {[%emt 0:00:20]} Kf3 {[%emt 0:00:46] Threatens to win with ...d4.} 45. Rxd5 {[%emt 0:00:07]} e3+ {[%emt 0:00:03]} 46. Kd3 {[%emt 0:00:28] Weighted Error Value: White=0.52/Black=0.10 (very precise)} 0-1

[Event "Romanian Rapid Open 2022"]
[Site "Sebes"]
[Date "2022.12.02"]
[Round "5.31"]
[White "Iosif, Mihai-Aurelian"]
[Black "Nagy-Elek, Tamas"]
[Result "0-1"]
[ECO "B19"]
[WhiteElo "1549"]
[BlackElo "1976"]
[Annotator "TA"]
[PlyCount "82"]
[EventDate "2022.12.02"]
[EventType "rapid"]
[EventCountry "ROU"]
[SourceTitle "playchess.com"]
[Source "ChessBase"]
[SourceQuality "1"]
[TimeControl "600+5"]

{[%evp 23,82,0,0,-7,-23,-14,0,15,27,32,26,25,41,2,25,-16,-9,-16,-17,-20,0,-16,-16,-16,11,-20,-29,-38,0,0,0,0,0,0,0,0,0,0,0,0,0,-7,-11,-217,-35,-64,0,-210,-218,-1193,-1172,-1080,-1105,-29990,-29991,-29993,-29991,-29991,-29992,-29996,-29995]} 1. e4 {[%emt 0:00:01]} c6 {[%emt 0:00:03]} 2. d4 {[%emt 0:00:04]} d5 {[%emt 0:00:04]} 3. Nc3 {[%emt 0:00:02]} dxe4 {[%emt 0:00:02]} 4. Nxe4 {[%emt 0:00:01]} Bf5 {[%emt 0:00:03]} 5. Ng3 {[%emt 0:00:02]} Bg6 {[%emt 0:00:02]} 6. h4 {[%emt 0:00:02]} h6 {[%emt 0:00:03]} 7. h5 {[%emt 0:00:02]} Bh7 {[%emt 0:00:02]} 8. Nf3 {[%emt 0:00:01]} e6 {[%emt 0:00:05]} 9. Bd3 {[%emt 0:00:01]} Bxd3 {[%emt 0:00:05]} 10. Qxd3 {[%emt 0:00:02]} Nf6 {[%emt 0:00:02]} 11. Bf4 {[%emt 0:00:19]} Bd6 {[%emt 0:00:36]} 12. Bxd6 {[%emt 0:00:02]} Qxd6 {[%emt 0:00:02]} 13. Ne4 {[%emt 0:00:15] B19: Classical Caro-Kann: 4...Bf5 main line.} Nxe4 {[%emt 0:00:25]} 14. Qxe4 {[%emt 0:00:02]} Nd7 {[%emt 0:00:22]} 15. O-O-O {[%emt 0:00:06] The position is equal.} Qd5 {[%emt 0:00:03]} 16. Qxd5 {[%emt 0:00:02]} cxd5 {[%emt 0:00:02] [#]} 17. c3 $146 {[%emt 0:00:03]} ({Predecessor:} 17. Rd3 Rc8 18. Rb3 Rc7 19. Ne5 Nxe5 20. dxe5 Ke7 21. Rh4 Rhc8 22. c3 b6 23. Rbb4 {½-½ (29) Jackova,J (2403)-Velicka,P (2440) Czech Republic 2005}) 17... b5 {[%emt 0:00:46]} 18. Kd2 {[%emt 0:00:14]} Ke7 {[%emt 0:00:13]} 19. Rhe1 {[%emt 0:00:06]} Rhc8 {[%emt 0:00:36]} 20. a3 {[%emt 0:00:21]} a5 {[%emt 0:00:08]} 21. Ne5 {[%emt 0:00:35]} Nf6 {[%emt 0:00:52]} 22. Rh1 {[%emt 0:00:40]} Ne4+ {[%emt 0:00:09]} 23. Ke3 {[%emt 0:00:01]} b4 {[%emt 0:01:35]} (23... Nd6 {simplifies} 24. g4 b4 25. axb4 axb4 26. cxb4 Nc4+) 24. c4 {[%emt 0:00:31]} f6 {[%emt 0:00:53]} 25. Ng6+ {[%emt 0:00:08]} Kf7 {[%emt 0:00:02]} 26. c5 {[%emt 0:00:02]} Rab8 {[%emt 0:00:16] Hoping for ...bxa3.} 27. a4 {[%emt 0:00:13]} b3 {[%emt 0:01:02]} 28. g4 {[%emt 0:01:03]} Rb4 {[%emt 0:00:24]} 29. f3 {[%emt 0:00:10]} Ng5 {[%emt 0:00:22]} 30. Rd3 {[%emt 0:00:29]} Ke8 {[%emt 0:01:10]} 31. Ra1 {[%emt 0:00:22]} Kd7 {[%emt 0:00:30]} 32. Ra3 {[%emt 0:00:01]} Rcb8 {[%emt 0:00:00]} 33. Rc3 $2 {[%emt 0:00:24] [#]} (33. f4 $11 {and White has nothing to worry.} Ne4 34. Nh4) 33... Kc6 $2 {[%emt 0:01:03]} ({Black should play} 33... e5 $1 $19 {[%cal Re5d4]} 34. c6+ Kc7) 34. Ne7+ {[%emt 0:00:05]} Kd7 {[%emt 0:00:05]} (34... Kc7 $1 $15) 35. Ng6 $19 {[%emt 0:00:02] [#]} e5 $1 {[%emt 0:00:22]} 36. dxe5 {[%emt 0:01:15]} (36. Rd3 exd4+ 37. Rxd4) 36... d4+ {[%emt 0:00:01]} 37. Kd3 {[%emt 0:00:02]} dxc3 {[%emt 0:00:02]} 38. bxc3 {[%emt 0:00:01]} b2 {[%emt 0:00:06] Black mates.} 39. e6+ {[%emt 0:00:07]} Kxe6 {[%emt 0:00:07]} 40. cxb4 {[%emt 0:00:10]} b1=Q+ {[%emt 0:00:03][%mdl 64] Zwischenzug, Double Attack} 41. Kc3 {[%emt 0:00:07]} Qxb4+ {[%emt 0:00:01] Weighted Error Value: White=0.56/Black=0.20 (precise)} 0-1

[Event "Romanian Rapid Open 2022"]
[Site "Sebes"]
[Date "2022.12.02"]
[Round "5.32"]
[White "Tudor, Henry Edward"]
[Black "Pop, Ioan I."]
[Result "1-0"]
[ECO "A52"]
[WhiteElo "1943"]
[BlackElo "1540"]
[Annotator "TA"]
[PlyCount "33"]
[EventDate "2022.12.02"]
[EventType "rapid"]
[EventCountry "ROU"]
[SourceTitle "playchess.com"]
[Source "ChessBase"]
[SourceQuality "1"]
[TimeControl "600+5"]

{[%evp 9,33,23,66,22,75,27,47,41,70,66,89,46,57,66,89,0,0,0,40,-38,623,438,598,611,29998,29999]} 1. d4 {[%emt 0:00:03]} Nf6 {[%emt 0:00:03]} 2. c4 {[%emt 0:00:02]} e5 {[%emt 0:00:01]} 3. dxe5 {[%emt 0:00:07]} Ng4 {[%emt 0:00:02]} 4. e4 {[%emt 0:00:06]} Nxe5 {[%emt 0:00:02]} 5. f4 {[%emt 0:00:01]} Ng6 {[%emt 0:00:09]} 6. Be3 {[%emt 0:00:28] A52: Budapest Gambit.} b6 {[%emt 0:00:28]} (6... Bb4+ $11 {remains equal.} 7. Nc3 d6) 7. Nf3 {[%emt 0:00:57] White is more active.} (7. Ne2 $16) 7... Bb7 {[%emt 0:00:04]} 8. Bd3 {[%emt 0:00:01] White is slightly better.} Nc6 {[%emt 0:00:23]} 9. Nc3 {[%emt 0:00:22]} Nb4 {[%emt 0:00:43] [#]} 10. Qe2 $146 {[%emt 0:01:24]} ({Predecessor:} 10. Bb1 d6 11. O-O Qd7 12. a3 Nc6 13. Ba2 Be7 14. b4 O-O-O 15. Qb3 Bf6 16. Rab1 {1-0 (31) Auzier Neto,J-Kurtz,A Porto Velho 1999}) 10... Nxd3+ {[%emt 0:00:04]} 11. Qxd3 {[%emt 0:00:02]} Nh4 {[%emt 0:00:15] [#]} 12. Nxh4 {[%emt 0:01:28]} (12. O-O $1 $16) 12... Qxh4+ $11 {[%emt 0:00:02]} 13. g3 {[%emt 0:00:01]} Qh5 {[%emt 0:00:51]} (13... Qg4 $5) 14. Rd1 {[%emt 0:01:11]} ({White should play} 14. O-O $14) 14... Bb4 $2 {[%emt 0:00:32][%mdl 8192]} (14... O-O-O $15) 15. Qxd7+ $18 {[%emt 0:00:11]} Kf8 {[%emt 0:00:02]} 16. Qxc7 {[%emt 0:00:07] [#] Rd8+ would kill now.} Bxe4 {[%emt 0:00:05]} 17. Rd8+ {[%emt 0:00:01] Weighted Error Value: White=0.34/Black=1.34} 1-0

[Event "Romanian Rapid Open 2022"]
[Site "Sebes"]
[Date "2022.12.02"]
[Round "5.33"]
[White "Tarciuc, Ianis-Mihai"]
[Black "Bucur, Denisa-Andreea"]
[Result "0-1"]
[ECO "A23"]
[WhiteElo "1642"]
[BlackElo "1953"]
[Annotator "TA"]
[PlyCount "94"]
[EventDate "2022.12.02"]
[EventType "rapid"]
[EventCountry "ROU"]
[SourceTitle "playchess.com"]
[Source "ChessBase"]
[SourceQuality "1"]
[TimeControl "600+5"]

{[%evp 16,94,-32,-27,-14,-19,-10,-50,-52,-56,-10,-53,-54,-72,-74,-63,-67,-68,-68,-67,-45,-55,-42,-75,-72,-77,-77,-79,-75,-64,-35,-52,-27,-35,-31,-55,-50,-79,-38,-81,-75,-84,-76,-72,-53,-48,-55,-74,-73,-83,-69,-68,-31,-31,-31,-104,-102,-107,-94,-87,-93,-100,-92,-113,-100,-226,-113,-105,-79,-134,-16,-89,-110,-345,-181,-174,-158,-1164,-1164,-1079,-1077]} 1. c4 {[%emt 0:00:01]} e5 {[%emt 0:00:01]} 2. g3 {[%emt 0:00:02]} c6 {[%emt 0:00:09]} 3. Bg2 {[%emt 0:00:07]} Nf6 {[%emt 0:00:03]} 4. Nc3 {[%emt 0:00:47]} d5 {[%emt 0:00:03]} 5. cxd5 {[%emt 0:00:06]} cxd5 {[%emt 0:00:01]} 6. d4 {[%emt 0:00:02]} exd4 {[%emt 0:01:14]} 7. Qxd4 {[%emt 0:00:03]} Nc6 {[%emt 0:00:02]} 8. Qd1 {[%emt 0:00:10]} d4 {[%emt 0:00:15]} 9. Ne4 {[%emt 0:00:50]} Be7 {[%emt 0:01:13] A23: English Opening: 1...e5 2 Nc3 Nf6 3 g3 c6.} 10. Nxf6+ $1 {[%emt 0:01:00]} Bxf6 {[%emt 0:00:02]} 11. Nf3 {[%emt 0:00:02]} O-O {[%emt 0:00:17] Black is slightly better.} 12. O-O {[%emt 0:00:02] [#]} Qb6 $146 {[%emt 0:01:17]} (12... Re8 $15 {might be stronger.}) ({Predecessor:} 12... Bf5 13. Ne1 Qb6 14. Nd3 Rac8 15. Bf4 Rfd8 16. h4 Nb4 17. Qd2 Bxd3 18. exd3 Rc2 {0-1 (29) Adrian,C (2240)-Louis,T (2244) Playchess.com INT 2021}) 13. Qc2 {[%emt 0:03:57]} Nb4 {[%emt 0:01:30]} 14. Qa4 {[%emt 0:01:05]} Bf5 {[%emt 0:00:16]} 15. Bd2 {[%emt 0:00:25]} Nc6 {[%emt 0:00:46] Black is more active.} 16. Qb3 {[%emt 0:01:17]} Qxb3 {[%emt 0:00:59]} 17. axb3 {[%emt 0:00:02]} d3 {[%emt 0:00:27]} (17... Rfe8 $5 {[%cal Re8e2]} 18. Rfe1 h6 $15) 18. exd3 {[%emt 0:00:32]} Bxd3 {[%emt 0:00:03][%cal Of6b2,Bf5d3,Bd3b5,Bb5c6][%mdl 32]} 19. Rfe1 {[%emt 0:00:35]} Bxb2 {[%emt 0:00:11]} 20. Ra2 {[%emt 0:00:03]} Bf6 {[%emt 0:00:04]} 21. Be3 {[%emt 0:00:20]} h6 {[%emt 0:00:55]} 22. Rc1 {[%emt 0:00:06]} a6 {[%emt 0:00:16]} 23. Nd2 $1 {[%emt 0:00:10][%cal Od2c4]} Bb5 {[%emt 0:00:24]} 24. Ne4 {[%emt 0:00:06]} Be7 {[%emt 0:00:22]} 25. Nc3 {[%emt 0:00:13]} Nb4 {[%emt 0:00:20]} 26. Rd2 {[%emt 0:00:05][%cal Oc3b5]} Bc6 {[%emt 0:00:16]} (26... Rac8 $5 {[%cal Rb4d3]} 27. Bxb7 Rc7 $15) 27. Nd5 {[%emt 0:00:05]} Nxd5 {[%emt 0:00:33]} 28. Bxd5 {[%emt 0:00:02]} Bxd5 {[%emt 0:00:14]} 29. Rxd5 {[%emt 0:00:02]} Ba3 {[%emt 0:00:05]} 30. Rc7 {[%emt 0:00:06]} b5 $1 {[%emt 0:00:03]} 31. Bc5 {[%emt 0:00:10]} Bxc5 {[%emt 0:00:01]} 32. Rdxc5 $17 {[%emt 0:00:01][%mdl 4096] Endgame KRR-KRR} Rfe8 {[%emt 0:00:10]} 33. Kf1 {[%emt 0:00:07]} Rad8 {[%emt 0:00:03]} 34. Ra7 {[%emt 0:00:05]} Re6 {[%emt 0:00:02]} 35. Rcc7 {[%emt 0:00:02]} (35. Rf5 $1 $15) 35... Rf6 {[%emt 0:00:02] ...Rd2 is the strong threat.} 36. Ke2 {[%emt 0:00:07] Against Rd2+} Rd4 {[%emt 0:00:07]} 37. Ra8+ {[%emt 0:00:05]} Kh7 {[%emt 0:00:01]} 38. Raa7 {[%emt 0:00:08]} Kg6 {[%emt 0:00:05]} 39. h4 {[%emt 0:00:06]} h5 {[%emt 0:00:01]} 40. f4 {[%emt 0:00:04] [#]} (40. Rc5 $17 {was worth a try.}) 40... Rb4 {[%emt 0:00:06]} ({Black should play} 40... Re6+ $1 $19 41. Kf1 Rd1+ 42. Kf2 Rd2+ 43. Kf1 Rf6) 41. Rc3 {[%emt 0:00:02]} Re6+ {[%emt 0:00:03]} 42. Kd3 {[%emt 0:00:04]} ({White should try} 42. Kf3) 42... Rbe4 {[%emt 0:00:03]} (42... f6 $17 {aiming for ...Rbe4.} 43. Rd7 Kh6) 43. Rcc7 {[%emt 0:00:05]} ({Much worse is} 43. Rxa6 Re3+ 44. Kd4 Rxc3 45. Rxe6+ fxe6 $19) (43. f5+ $1 $11 Kxf5 44. Rxf7+ Kg4 45. Rxg7+ Kh3 46. Rg5) 43... Re3+ {[%emt 0:00:06]} 44. Kc2 $2 {[%emt 0:00:02]} (44. Kd4 $17 {might work better.} f6 45. Rxg7+ Kf5 46. Ra8 (46. b4 Rb3 $17)) 44... Rxg3 {[%emt 0:00:11]} (44... Rf6 $142 45. Rc3 Rxc3+ 46. Kxc3 Kf5) 45. Rxf7 $19 {[%emt 0:00:03] [#] Black must now prevent f5+.} Kh6 {[%emt 0:00:06] Threatens to win with ...Re2+.} 46. f5 $2 {[%emt 0:00:06]} (46. Kd2 $17) 46... Re2+ {[%emt 0:00:06]} 47. Kd1 {[%emt 0:00:08]} Ra2 {[%emt 0:00:06] Weighted Error Value: White=0.42/Black=0.21 (precise)} 0-1